bitfinex/quotes_SOLUSD_20251103
["timestamp","ask_amount","ask_price","bid_price","bid_amount"]
[1762152446619,8.71164183,174.94,174.86,6.38880914]
[1762152446801,0.57149388,174.95,174.86,0.67]
[1762152447006,8.71164183,174.88,174.82,0.67]
[1762152447314,8.71164183,174.88,174.79,0.67]
[1762152447315,8.71164183,174.84,174.79,0.67]
[1762152447694,8.71164183,174.85,174.79,0.67]
[1762152448113,1.99999999,174.86,174.79,0.67]
[1762152448311,8.71164183,174.84,174.79,0.67]
[1762152448516,8.71164183,174.82,174.79,0.67]
[1762152449438,8.71164183,174.8,174.76,0.67]
[1762152449730,1.99999999,174.77,174.75,1.5]
[1762152449905,8.71164183,174.76,174.75,1.5]
[1762152450240,11.9631357,174.76,174.75,1.5]
[1762152450409,17.68526891,174.76,174.75,0.66]
[1762152450726,17.68526891,174.76,174.7,0.1]
[1762152450727,1.99999999,174.71,174.7,0.1]
[1762152451020,10.71164182,174.71,174.7,0.1]
[1762152451197,10.71164182,174.71,174.67,146.87]
[1762152451198,1.99999999,174.68,174.67,146.87]
[1762152451399,23.16349387,174.68,174.67,146.87]
[1762152451602,11.2831357,174.68,174.67,146.87]
[1762152451825,10.71164182,174.68,174.67,146.87]
[1762152452029,10.71164182,174.68,174.54,4.30861373]
[1762152452030,1.99999999,174.61,174.55,0.67]
[1762152452208,8.71164183,174.59,174.55,0.67]
[1762152452414,8.71164183,174.57,174.54,4.30861373]
[1762152452621,9.28313571,174.56,174.54,4.30861373]
[1762152452826,2.57149387,174.62,174.55,0.67]
[1762152453005,11.2831357,174.62,174.55,0.67]
[1762152453216,8.71164183,174.6,174.55,0.67]
[1762152453428,8.71164183,174.58,174.55,0.67]
[1762152453628,8.71164183,174.59,174.55,0.67]
[1762152453946,10.71164182,174.64,174.56,8.71164183]
[1762152454105,0.57149388,174.63,174.58,8.71164183]
[1762152454300,1.99999999,174.66,174.57,21.83483611]
[1762152454530,0.57149388,174.65,174.58,0.67]
[1762152454850,2.57149387,174.65,174.58,0.67]
[1762152455003,8.71164183,174.62,174.58,0.67]
[1762152455204,1.99999999,174.63,174.58,0.67]
[1762152455435,9.28313571,174.63,174.58,0.67]
[1762152455611,10.71164182,174.59,174.54,4.30861373]
[1762152455814,10.71164182,174.55,174.54,4.30861373]
[1762152456213,1.99999999,174.56,174.54,4.98861373]
[1762152456424,0.57149388,174.55,174.54,4.30861373]
[1762152457025,34.90916584,174.62,174.54,4.30861373]
[1762152457026,1.99999999,174.58,174.54,4.98861373]
[1762152457232,0.57149388,174.57,174.54,13.70025556]
[1762152457401,2.57149387,174.57,174.54,4.30861373]
[1762152457606,1.99999999,174.56,174.54,4.30861373]
[1762152457834,0.57149388,174.55,174.54,4.30861373]
[1762152458004,0.57149388,174.56,174.54,4.30861373]
[1762152458204,2.57149387,174.56,174.54,4.30861373]
[1762152458429,10.71164182,174.55,174.54,4.30861373]
[1762152458811,1.99999999,174.56,174.54,4.30861373]
[1762152459023,2.57149387,174.55,174.54,4.30861373]
[1762152459231,11.2831357,174.55,174.54,4.30861373]
[1762152459557,0.57149388,174.55,174.54,4.30861373]
[1762152460038,1.99999999,174.56,174.54,4.30861373]
[1762152460232,0.57149388,174.55,174.54,4.30861373]
[1762152461027,1.99999999,174.59,174.54,10.24879382]
[1762152461339,7.26018008,174.64,174.57,5.26018009]
[1762152461512,1.99999999,174.61,174.55,0.68]
[1762152461825,0.57149388,174.6,174.56,5.26018009]
[1762152462025,0.57149388,174.6,174.57,0.68]
[1762152462229,1.99999999,174.61,174.57,5.94018009]
[1762152462410,0.57149388,174.6,174.57,0.68]
[1762152462813,0.57149388,174.63,174.59,5.26018009]
[1762152463029,0.57149388,174.66,174.61,5.26018009]
[1762152463238,0.57149388,174.66,174.62,5.26018009]
[1762152463617,0.57149388,174.69,174.64,5.26018009]
[1762152463817,0.57149388,174.7,174.67,5.26018009]
[1762152464115,0.57149388,174.72,174.68,5.26018009]
[1762152464341,0.57149388,174.72,174.69,5.26018009]
[1762152464516,0.57149388,174.72,174.68,5.26018009]
[1762152465040,0.57149388,174.73,174.69,5.94018009]
[1762152465241,0.57149388,174.73,174.69,0.68]
[1762152465418,1.99999999,174.71,174.64,0.68]
[1762152465736,2.57149387,174.75,174.64,0.68]
[1762152465941,1.99999999,174.73,174.64,0.68]
[1762152466121,0.57149388,174.72,174.68,5.26018009]
[1762152466322,0.57149388,174.72,174.67,5.26018009]
[1762152466847,20.592,174.72,174.54,4.30861373]
[1762152467138,1.99999999,174.66,174.6,5.94018009]
[1762152467438,7.83167396,174.66,174.6,0.68]
[1762152467630,7.83167396,174.66,174.61,0.68]
[1762152467834,1.99999999,174.66,174.6,5.26018009]
[1762152468035,1.99999999,174.68,174.63,5.26018009]
[1762152468338,1.99999999,174.7,174.65,5.26018009]
[1762152468543,1.99999999,174.71,174.65,5.26018009]
[1762152468717,2.57149387,174.72,174.66,5.26018009]
[1762152468923,20.592,174.78,174.66,5.26018009]
[1762152468924,1.84149387,174.9,174.75,9.78882769]
[1762152469128,0.71,174.9,174.8,5.26018009]
[1762152469351,1.13149387,174.96,174.89,5.26018009]
[1762152469514,1.13149387,174.94,174.91,5.26018009]
[1762152469729,1.84149387,174.94,174.85,21.272]
[1762152470064,1.13149387,174.89,174.7,25.8]
[1762152470385,1.13149387,174.86,174.85,5.26018009]
[1762152470661,1.13149387,174.88,174.8,5.26018009]
[1762152470951,5.26018009,174.92,174.8,5.26018009]
[1762152470952,1.13149387,174.89,174.87,5.26018009]
[1762152471123,6.84942476,174.89,174.86,5.26018009]
[1762152471327,1.13149387,174.87,174.86,5.26018009]
[1762152471527,1.13149387,174.87,174.81,0.68]
[1762152471749,1.13149387,174.89,174.86,5.26018009]
[1762152471940,1.13149387,174.88,174.87,5.26018009]
[1762152472249,1.13149387,174.88,174.78,20.592]
[1762152472250,1.13149387,174.85,174.78,20.592]
[1762152472451,1.13149387,174.84,174.8,5.26018009]
[1762152472651,1.13149387,174.85,174.82,5.26018009]
[1762152472838,1.13149387,174.85,174.83,5.26018009]
[1762152473041,1.13149387,174.84,174.83,5.26018009]
[1762152473629,1.13149387,174.84,174.82,5.26018009]
[1762152473850,1.13149387,174.85,174.82,5.26018009]
[1762152474151,1.13149387,174.83,174.74,20.592]
[1762152474449,9.01279948,174.83,174.74,0.68]
[1762152474680,0.29342706,174.83,174.78,8.71937242]
[1762152474842,0.29342706,174.83,174.79,8.71937242]
[1762152475173,14.43906578,174.84,174.79,8.71937242]
[1762152475174,14.43886864,174.85,174.79,8.71937242]
[1762152475679,14.43886864,174.85,174.8,8.71937242]
[1762152475848,3.67867874,174.84,174.8,8.71937242]
[1762152476035,14.43886864,174.85,174.8,8.71937242]
[1762152476271,14.29665041,174.87,174.81,8.71937242]
[1762152476272,3.67891189,174.84,174.81,8.71937242]
[1762152476445,14.43794706,174.87,174.81,8.71937242]
[1762152476769,3.67896969,174.86,174.78,0.68]
[1762152476944,6.41812842,174.89,174.83,8.71937242]
[1762152477137,6.41812842,174.89,174.78,0.68]
[1762152477138,0.7,174.89,174.85,8.71937242]
[1762152477539,5.717226,174.91,174.8,0.68]
[1762152477783,3.67922295,174.9,174.85,8.71937242]
[1762152478075,0.7,174.92,174.88,8.71937242]
[1762152478240,0.7,174.92,174.8,0.68]
[1762152478241,3.67942994,174.91,174.87,8.71937242]
[1762152478440,0.7,174.92,174.87,8.71937242]
[1762152478745,3.67888814,174.91,174.88,8.71937242]
[1762152479058,15.13530449,174.95,174.89,8.71937242]
[1762152479259,3.67933971,174.94,174.88,8.71937242]
[1762152479461,0.7,174.94,174.88,8.71937242]
[1762152479768,9.41937242,174.94,174.88,8.71937242]
[1762152480069,9.41937242,174.94,174.84,0.68]
[1762152480265,0.7,174.94,174.89,8.71937242]
[1762152480448,0.7,175.01,174.93,8.71937242]
[1762152480767,0.7,175.01,174.89,8.71937242]
[1762152480768,3.68113943,175.0,174.89,8.71937242]
[1762152480940,8.71937242,174.98,174.88,0.68]
[1762152481148,4.38113943,174.99,174.93,8.71937242]
[1762152481149,0.7,174.99,174.93,8.71937242]
[1762152481376,9.41937242,174.99,174.93,8.71937242]
[1762152481563,9.41937242,174.99,174.89,0.68]
[1762152481564,0.7,174.99,174.89,0.68]
[1762152481864,12.39962534,175.02,174.96,8.71937242]
[1762152482035,0.7,175.03,174.93,0.68]
[1762152482249,8.71937242,175.01,174.95,8.71937242]
[1762152482446,0.7,175.03,174.93,8.71937242]
[1762152482792,8.71937242,175.01,174.95,8.71937242]
[1762152482951,8.71937242,175.01,174.96,8.71937242]
[1762152483157,0.7,175.02,174.96,8.71937242]
[1762152483158,9.41937242,175.02,174.96,8.71937242]
[1762152483879,5.71330629,175.03,174.9,10.36058297]
[1762152484082,5.71330629,175.03,174.98,8.71937242]
[1762152484354,5.71330629,175.03,174.9,10.36058297]
[1762152484571,8.71937242,174.95,174.91,9.74935966]
[1762152484988,8.71937242,174.92,174.91,9.74935966]
[1762152485360,9.41937242,174.92,174.91,9.74935966]
[1762152485779,8.71937242,174.92,174.91,9.74935966]
[1762152486190,24.94285975,174.97,174.91,9.74935966]
[1762152486380,8.71937242,174.92,174.91,9.74935966]
[1762152486695,5.71689915,174.92,174.91,9.74935966]
[1762152486900,8.71937242,174.96,174.91,18.46873208]
[1762152487067,8.71937242,174.97,174.92,9.38937242]
[1762152487258,8.71937242,174.97,174.91,18.46873208]
[1762152487455,8.71937242,174.97,174.92,8.71937242]
[1762152487659,8.71937242,174.98,174.93,8.71937242]
[1762152488097,8.71937242,174.98,174.93,9.38937242]
[1762152488296,8.71937242,174.98,174.91,9.74935966]
[1762152488297,8.71937242,174.95,174.91,9.74935966]
[1762152488475,8.71937242,174.92,174.91,9.74935966]
[1762152488657,5.71689915,174.92,174.91,9.74935966]
[1762152488863,14.28817565,174.97,174.91,9.74935966]
[1762152489073,8.71937242,174.97,174.91,19.13873208]
[1762152489583,8.71937242,174.93,174.91,9.74935966]
[1762152489785,8.71937242,174.95,174.91,9.74935966]
[1762152489990,8.71937242,174.96,174.91,18.46873208]
[1762152490494,8.71937242,174.96,174.91,9.74935966]
[1762152490678,8.71937242,174.97,174.92,0.67]
[1762152490880,8.71937242,175.0,174.94,8.71937242]
[1762152491081,5.7139592,175.01,174.92,0.67]
[1762152491390,8.71937242,174.99,174.94,8.71937242]
[1762152491890,8.71937242,174.99,174.94,9.38937242]
[1762152492094,8.71937242,174.95,174.91,9.74935966]
[1762152492468,8.71937242,174.96,174.91,10.41935966]
[1762152492690,5.71559213,174.96,174.91,19.13873208]
[1762152493194,8.71937242,174.95,174.91,10.41935966]
[1762152493493,20.68457246,174.96,174.91,9.74935966]
[1762152493793,8.71937242,174.95,174.91,9.74935966]
[1762152493974,20.68457246,174.96,174.91,9.74935966]
[1762152494179,8.71937242,174.95,174.91,9.74935966]
[1762152494490,25.24273907,174.96,174.91,9.74935966]
[1762152494680,6.39622801,174.95,174.91,9.74935966]
[1762152495971,17.11,175.03,174.91,9.74935966]
[1762152495972,0.68,175.04,174.94,5.23816661]
[1762152496293,5.71200091,175.07,174.92,0.67]
[1762152496294,5.71200091,175.07,174.99,5.23816661]
[1762152496491,5.23816661,175.04,174.95,0.67]
[1762152496692,5.71297989,175.04,174.99,5.23816661]
[1762152497072,5.91816661,175.03,174.97,5.23816661]
[1762152497472,5.71297989,175.04,174.98,5.23816661]
[1762152497797,5.71297989,175.04,174.99,5.23816661]
[1762152497994,6.39297989,175.04,174.99,5.23816661]
[1762152498170,11.6311465,175.04,174.99,5.23816661]
[1762152498367,0.2,175.08,175.0,0.67]
[1762152498582,0.2,175.08,175.02,5.23816661]
[1762152498784,0.2,175.08,175.03,5.23816661]
[1762152498990,0.2,175.08,175.03,5.90816661]
[1762152499192,5.43816661,175.08,175.03,0.67]
[1762152499493,5.43816661,175.08,174.97,21.16352654]
[1762152499494,5.91188683,175.08,175.01,5.23816661]
[1762152499699,5.23816661,175.05,175.0,0.67]
[1762152500186,5.23816661,175.04,175.0,0.67]
[1762152500509,20.19107348,175.08,174.95,5.23816661]
[1762152500510,5.23816661,175.01,174.95,5.23816661]
[1762152500685,5.23816661,175.01,174.95,0.67]
[1762152501003,10.9523783,175.01,174.95,0.67]
[1762152501214,5.23816661,175.01,174.95,0.67]
[1762152501511,5.23816661,175.0,174.94,5.23816661]
[1762152501801,5.23816661,175.0,174.95,5.23816661]
[1762152501971,5.23816661,175.01,174.95,5.23816661]
[1762152502381,8.02031522,175.01,174.95,8.02031522]
[1762152502801,5.71428571,175.0,174.95,8.02031522]
[1762152502997,13.73432049,175.01,174.95,8.02031522]
[1762152503204,8.02031522,175.01,174.95,8.02031522]
[1762152503375,8.02031522,175.0,174.93,0.67]
[1762152503580,8.02031522,174.98,174.92,8.02031522]
[1762152503801,8.02031522,174.93,174.78,0.67]
[1762152503974,20.592,174.93,174.79,0.67]
[1762152504180,3.67549676,174.95,174.79,0.67]
[1762152504181,24.95207997,174.92,174.79,0.67]
[1762152504378,3.68007997,174.91,174.79,0.67]
[1762152504577,4.36007997,174.91,174.79,0.67]
[1762152504791,6.39755288,174.9,174.79,0.67]
[1762152505003,8.02031522,174.86,174.79,0.67]
[1762152505189,20.69143509,174.9,174.78,8.02031522]
[1762152505190,8.02031522,174.83,174.78,8.02031522]
[1762152505494,3.67970752,174.88,174.76,0.67]
[1762152505694,8.02031522,174.84,174.76,0.67]
[1762152505901,4.58737225,174.79,174.76,0.67]
[1762152506205,3.68560211,174.78,174.76,0.67]
[1762152506405,4.58737225,174.8,174.77,17.80914291]
[1762152506588,3.690995,174.79,174.78,9.78882769]
[1762152506786,3.690995,174.79,174.77,9.78882769]
[1762152506994,3.690995,174.78,174.77,10.45882769]
[1762152507314,3.690995,174.78,174.77,9.78882769]
[1762152507687,3.690995,174.78,174.77,10.45882769]
[1762152507892,3.690995,174.78,174.77,18.47914291]
[1762152508293,3.690995,174.78,174.77,19.05132349]
[1762152508985,3.690995,174.78,174.77,11.03100827]
[1762152509192,3.690995,174.78,174.77,19.05132349]
[1762152509392,3.690995,174.78,174.77,10.45882769]
[1762152509704,4.58737225,174.85,174.81,9.78882769]
[1762152509907,4.58737225,174.86,174.82,0.67]
[1762152510217,5.71897584,174.86,174.78,0.67]
[1762152510416,4.6338764,174.79,174.74,8.69031522]
[1762152510592,6.15869326,174.79,174.72,8.02031522]
[1762152510908,4.63236791,174.75,174.74,8.02031522]
[1762152511110,4.63236791,174.76,174.73,8.02031522]
[1762152511309,4.63236791,174.76,174.71,8.02031522]
[1762152511510,4.63236791,174.75,174.67,20.592]
[1762152511714,12.65268313,174.75,174.7,8.02031522]
[1762152512014,4.63355221,174.77,174.73,8.02031522]
[1762152512333,4.63355221,174.75,174.67,21.262]
[1762152512492,4.63355221,174.74,174.68,0.67]
[1762152513016,4.63355221,174.74,174.7,8.02031522]
[1762152513192,12.65386743,174.73,174.64,0.67]
[1762152513391,8.02031522,174.72,174.64,0.67]
[1762152513592,8.02031522,174.69,174.63,0.1]
[1762152513798,4.63355221,174.68,174.63,8.12031522]
[1762152514291,8.02031522,174.66,174.63,0.1]
[1762152514503,4.63355221,174.66,174.63,0.1]
[1762152514736,8.02031522,174.64,174.63,0.1]
[1762152514898,8.02031522,174.64,174.54,22.83958473]
[1762152514899,8.02031522,174.57,174.54,22.16958473]
[1762152515102,4.62890793,174.58,174.54,22.16958473]
[1762152515290,0.69,174.63,174.54,22.16958473]
[1762152515291,25.22090793,174.59,174.54,22.16958473]
[1762152515607,4.62890793,174.57,174.54,22.16958473]
[1762152515793,4.62890793,174.57,174.54,21.14958473]
[1762152515992,4.62890793,174.55,174.54,21.14958473]
[1762152516193,4.62890793,174.56,174.54,21.81958473]
[1762152516395,17.11,174.58,174.54,21.81958473]
[1762152516613,4.62890793,174.6,174.54,21.14958473]
[1762152516826,8.02031522,174.58,174.54,21.14958473]
[1762152517005,10.35628479,174.6,174.54,21.14958473]
[1762152517207,30.94795761,174.61,174.54,21.14958473]
[1762152517412,8.02031522,174.62,174.56,8.02031522]
[1762152517716,10.35385978,174.68,174.58,8.02031522]
[1762152517923,8.02031522,174.66,174.6,8.02031522]
[1762152518224,5.72382148,174.71,174.57,20.592]
[1762152518518,8.02031522,174.68,174.62,8.02031522]
[1762152518730,5.72338957,174.73,174.62,0.67]
[1762152519025,8.02031522,174.69,174.64,8.02031522]
[1762152519199,8.02031522,174.7,174.65,8.02031522]
[1762152519400,4.62890793,174.78,174.68,8.02031522]
[1762152519627,8.02031522,174.7,174.67,0.67]
[1762152519834,20.0263486,174.77,174.67,0.67]
[1762152520012,8.02031522,174.74,174.68,8.02031522]
[1762152520214,4.62890793,174.79,174.7,8.02031522]
[1762152520515,20.02412966,174.79,174.67,0.67]
[1762152520715,8.02031522,174.74,174.67,0.67]
[1762152520939,8.02031522,174.74,174.69,8.02031522]
[1762152521127,4.62890793,174.81,174.71,8.02031522]
[1762152521328,28.58351795,174.93,174.75,8.02031522]
[1762152521329,5.71954928,174.84,174.75,8.02031522]
[1762152521627,10.34740778,174.88,174.77,8.02031522]
[1762152521830,3.67438017,174.87,174.8,8.02031522]
[1762152522026,3.67438017,174.86,174.73,10.36113925]
[1762152522331,3.67438017,174.91,174.85,8.02031522]
[1762152522533,3.67438017,174.9,174.84,8.02031522]
[1762152522719,8.02031522,174.89,174.83,8.02031522]
[1762152522918,8.02031522,174.84,174.78,0.67]
[1762152523121,3.67438017,174.87,174.78,0.67]
[1762152523454,8.02031522,174.8,174.78,0.67]
[1762152523618,8.02031522,174.81,174.78,0.67]
[1762152524041,8.02031522,174.84,174.78,8.69031522]
[1762152524241,3.67342265,174.88,174.79,8.02031522]
[1762152524418,8.02031522,174.84,174.79,8.69031522]
[1762152524842,3.67342265,174.85,174.8,8.69031522]
[1762152525146,8.02031522,174.85,174.8,8.69031522]
[1762152525456,8.02031522,174.81,174.75,0.67]
[1762152525621,20.592,174.85,174.74,1.13043003]
[1762152525914,8.02031522,174.82,174.76,8.02031522]
[1762152526115,8.02031522,174.8,174.75,8.02031522]
[1762152526327,20.592,174.85,174.76,8.02031522]
[1762152526538,3.67402224,174.84,174.71,9.78882769]
[1762152526719,20.592,174.81,174.7,8.02031522]
[1762152526924,8.02031522,174.79,174.74,8.02031522]
[1762152527122,8.02031522,174.8,174.75,8.02031522]
[1762152527331,8.02031522,174.8,174.67,9.78882769]
[1762152527523,8.02031522,174.79,174.73,8.02031522]
[1762152527836,20.592,174.83,174.76,8.02031522]
[1762152528043,5.71986023,174.83,174.75,8.02031522]
[1762152528334,8.02031522,174.79,174.74,8.69031522]
[1762152528524,8.02031522,174.79,174.75,0.67]
[1762152528724,0.67,174.89,174.75,0.67]
[1762152528924,8.02031522,174.84,174.78,8.02031522]
[1762152529223,8.02031522,174.85,174.79,8.02031522]
[1762152529426,8.02031522,174.85,174.8,8.02031522]
[1762152529933,8.02031522,174.84,174.78,0.67]
[1762152530138,8.02031522,174.79,174.7,8.69031522]
[1762152530338,8.02031522,174.75,174.7,8.69031522]
[1762152530523,24.26756022,174.81,174.68,8.02031522]
[1762152530724,8.02031522,174.74,174.69,0.67]
[1762152530931,8.02031522,174.74,174.61,0.57270488]
[1762152530932,8.02031522,174.71,174.61,0.57270488]
[1762152531135,8.02031522,174.7,174.61,0.67]
[1762152531438,8.02031522,174.71,174.65,8.02031522]
[1762152531637,8.02031522,174.72,174.66,8.02031522]
[1762152531943,8.02031522,174.71,174.66,8.02031522]
[1762152532142,8.02031522,174.71,174.63,0.67]
[1762152532324,24.26489312,174.73,174.65,8.02031522]
[1762152532525,8.02031522,174.72,174.64,0.67]
[1762152532739,0.67,174.75,174.6,9.78882769]
[1762152532740,8.02031522,174.73,174.67,8.02031522]
[1762152532953,11.68997818,174.75,174.69,8.02031522]
[1762152533239,8.02031522,174.78,174.72,8.02031522]
[1762152533416,3.67153739,174.8,174.75,8.02031522]
[1762152533619,3.67153739,174.8,174.67,10.36133584]
[1762152533620,8.02031522,174.8,174.67,10.36133584]
[1762152533925,8.02031522,174.81,174.75,8.02031522]
[1762152534124,0.67,174.87,174.76,8.02031522]
[1762152534343,3.67204233,174.86,174.77,8.02031522]
[1762152534523,0.67,174.87,174.76,8.02031522]
[1762152534524,8.02031522,174.82,174.76,8.02031522]
[1762152534747,8.02031522,174.82,174.77,8.02031522]
[1762152534937,11.69235755,174.83,174.77,8.02031522]
[1762152535353,8.02031522,174.83,174.77,8.02031522]
[1762152535545,3.67357536,174.86,174.81,8.02031522]
[1762152535744,8.02031522,174.87,174.78,0.67]
[1762152535944,8.02031522,174.88,174.82,8.02031522]
[1762152536133,5.71757666,174.9,174.82,8.02031522]
[1762152536335,5.71721513,174.92,174.84,8.02031522]
[1762152536658,8.02031522,174.89,174.84,8.02031522]
[1762152536860,8.02031522,174.9,174.85,8.02031522]
[1762152537152,8.02031522,174.89,174.84,8.69031522]
[1762152537349,5.71689915,174.92,174.84,8.02031522]
[1762152537555,8.02031522,174.86,174.79,0.67]
[1762152537856,8.02031522,174.88,174.82,8.02031522]
[1762152538171,21.262,174.94,174.84,8.02031522]
[1762152538337,5.71526547,174.97,174.87,8.02031522]
[1762152538659,8.02031522,174.9,174.84,8.02031522]
[1762152538862,8.02031522,174.9,174.85,8.02031522]
[1762152539062,8.02031522,174.9,174.84,8.02031522]
[1762152539362,8.02031522,174.87,174.82,8.02031522]
[1762152539658,20.68153299,174.9,174.81,0.67]
[1762152539860,8.02031522,174.88,174.82,8.02031522]
[1762152540041,8.02031522,174.88,174.83,0.67]
[1762152540362,8.02031522,174.85,174.79,0.67]
[1762152540536,8.02031522,174.82,174.73,9.78882769]
[1762152540736,8.02031522,174.82,174.7,0.57240984]
[1762152540737,0.67,174.87,174.75,8.69031522]
[1762152540944,47.2,174.86,174.78,8.02031522]
[1762152541154,52.91892063,174.86,174.8,8.02031522]
[1762152541360,67.88607263,174.86,174.76,0.67]
[1762152541547,8.02031522,174.83,174.77,8.02031522]
[1762152541758,47.2,174.89,174.82,8.02031522]
[1762152541956,0.67,174.94,174.86,8.02031522]
[1762152542270,8.02031522,174.93,174.87,8.02031522]
[1762152542571,8.02031522,174.95,174.89,8.02031522]
[1762152542769,8.02031522,174.95,174.89,0.67]
[1762152542947,8.02031522,174.97,174.89,0.67]
[1762152543145,5.91495439,174.98,174.91,8.02031522]
[1762152543354,8.02031522,174.95,174.9,8.02031522]
[1762152543867,8.02031522,174.96,174.91,8.69031522]
[1762152544046,8.02031522,174.97,174.92,8.02031522]
[1762152544250,8.02031522,174.96,174.91,8.02031522]
[1762152544464,8.02031522,174.97,174.91,8.69031522]
[1762152544665,0.67,174.97,174.91,9.74935966]
[1762152544843,5.71559213,174.96,174.91,9.74935966]
[1762152545179,8.02031522,174.96,174.91,9.74935966]
[1762152545348,8.02031522,174.95,174.91,10.41935966]
[1762152545668,0.2,174.98,174.91,10.41935966]
[1762152545873,8.02031522,174.97,174.92,8.69031522]
[1762152546163,8.22031522,174.98,174.93,8.02031522]
[1762152546546,8.22031522,174.98,174.93,8.69031522]
[1762152546750,0.2,174.98,174.93,8.69031522]
[1762152547064,0.2,174.98,174.94,0.67]
[1762152547065,8.22031522,174.98,174.94,0.67]
[1762152547268,0.2,174.98,174.94,0.67]
[1762152547770,0.2,174.98,174.94,8.69031522]
[1762152547982,0.2,174.98,174.96,8.02031522]
[1762152548149,3.69021386,175.06,174.97,8.69031522]
[1762152548348,0.2,175.08,175.01,8.02031522]
[1762152548561,0.2,175.08,175.06,8.02031522]
[1762152549177,0.2,175.08,175.07,8.02031522]
[1762152549390,0.2,175.08,175.06,8.02031522]
[1762152549876,0.2,175.08,175.07,8.69031522]
[1762152550372,0.2,175.08,175.06,8.02031522]
[1762152550671,0.2,175.08,175.07,0.67]
[1762152551049,0.2,175.08,175.07,8.02031522]
[1762152551252,0.2,175.08,175.07,8.69031522]
[1762152551477,0.2,175.08,175.07,0.67]
[1762152551674,0.2,175.08,175.07,8.69031522]
[1762152551947,0.2,175.08,175.07,18.47914291]
[1762152552680,0.2,175.08,175.07,8.69031522]
[1762152554876,0.2,175.08,175.04,8.69031522]
[1762152555075,0.2,175.08,175.05,8.02031522]
[1762152555278,0.2,175.08,175.07,8.02031522]
[1762152555651,8.02031522,175.14,175.07,0.67]
[1762152555855,8.02031522,175.12,175.07,0.67]
[1762152556051,8.02031522,175.1,175.07,0.67]
[1762152556460,8.02031522,175.08,175.04,0.67]
[1762152556657,8.02031522,175.05,174.91,24.04202772]
[1762152556860,8.02031522,175.02,174.97,0.67]
[1762152557061,8.02031522,175.03,174.98,8.02031522]
[1762152557284,8.02031522,175.06,175.01,8.02031522]
[1762152557490,14.2755786,175.13,175.01,8.02031522]
[1762152557491,0.66,175.15,175.04,8.02031522]
[1762152557794,20.592,175.13,175.04,8.02031522]
[1762152558096,8.02031522,175.09,175.04,0.67]
[1762152558303,21.252,175.13,175.04,0.67]
[1762152558505,0.66,175.13,175.05,8.02031522]
[1762152558691,0.2,175.16,175.11,8.02031522]
[1762152558890,0.2,175.16,175.13,8.02031522]
[1762152559316,0.2,175.16,175.12,8.02031522]
[1762152559808,0.2,175.16,175.12,8.69031522]
[1762152560317,8.22031522,175.16,175.09,8.69031522]
[1762152560490,8.22031522,175.16,175.1,8.02031522]
[1762152560690,0.2,175.16,175.09,0.67]
[1762152560891,0.2,175.16,175.11,8.02031522]
[1762152561108,0.2,175.16,175.11,0.67]
[1762152561290,0.2,175.16,175.11,8.69031522]
[1762152561505,8.02031522,175.14,175.07,9.78882769]
[1762152561686,8.02031522,175.14,175.08,8.02031522]
[1762152561885,0.2,175.16,175.09,8.02031522]
[1762152562109,5.90919384,175.16,175.09,8.02031522]
[1762152562295,0.2,175.16,175.1,8.02031522]
[1762152562497,8.22031522,175.16,175.1,8.02031522]
[1762152562891,13.92939422,175.16,175.1,8.02031522]
[1762152563214,8.02031522,175.15,175.09,8.02031522]
[1762152563809,5.909079,175.16,175.12,8.02031522]
[1762152563810,0.2,175.16,175.12,8.02031522]
[1762152564204,0.2,175.16,175.12,8.69031522]
[1762152564502,0.2,175.16,175.13,6.41632502]
[1762152564909,0.2,175.16,175.13,5.74632502]
[1762152565222,0.2,175.16,175.14,0.67]
[1762152565589,0.2,175.16,175.14,6.41632502]
[1762152565898,0.2,175.16,175.15,6.39632502]
[1762152567388,0.2,175.16,175.15,0.65]
[1762152567721,0.2,175.16,175.15,12.10571696]
[1762152567889,0.2,175.16,175.15,26.98832502]
[1762152568097,0.2,175.16,175.15,6.39632502]
[1762152568711,0.2,175.16,175.1,0.65]
[1762152569010,5.94632502,175.16,175.1,0.65]
[1762152569210,0.2,175.16,175.1,0.65]
[1762152569416,0.2,175.16,175.1,6.39632502]
[1762152569601,0.2,175.16,175.13,5.74632502]
[1762152569803,0.2,175.16,175.15,5.74632502]
[1762152570012,0.2,175.19,175.15,16.18515271]
[1762152570329,0.2,175.19,175.18,5.74632502]